[Event "Late-Titled-Tuesday-Blitz-February-27-2024"]
[Site "Chess.com"]
[Date "2024.02.27"]
[Round "3"]
[White "Tunahan_Makaraci"]
[Black "Abund"]
[Result "1/2-1/2"]
[WhiteElo "2560"]
[BlackElo "2760"]
[TimeControl "180+1"]
[EndTime "14:29:35 PST"]
[Termination "Game drawn by repetition"]

1. e4 {[%clk 0:03:00.9]} 1... c6 {[%clk 0:02:59.9]} 2. d4 {[%clk 0:03:00.9]}
2... d5 {[%clk 0:03:00.6]} 3. exd5 {[%clk 0:03:01.8]} 3... cxd5 {[%clk
0:03:00.7]} 4. c4 {[%clk 0:03:02.5]} 4... Nf6 {[%clk 0:03:00.5]} 5. Nc3 {[%clk
0:03:03.2]} 5... Nc6 {[%clk 0:03:00.6]} 6. Bg5 {[%clk 0:03:02.5]} 6... dxc4
{[%clk 0:02:58.8]} 7. d5 {[%clk 0:02:58.8]} 7... Ne5 {[%clk 0:02:59.3]} 8. Qd4
{[%clk 0:02:58.7]} 8... h6 {[%clk 0:02:55.8]} 9. Bf4 {[%clk 0:02:58.2]} 9... Ng6
{[%clk 0:02:55.2]} 10. Bxc4 {[%clk 0:02:54.3]} 10... Nxf4 {[%clk 0:02:28.1]} 11.
Qxf4 {[%clk 0:02:54]} 11... g5 {[%clk 0:02:27.6]} 12. Qd2 {[%clk 0:02:50.2]}
12... Bg7 {[%clk 0:02:26.2]} 13. Nf3 {[%clk 0:02:50.1]} 13... O-O {[%clk
0:02:20.1]} 14. O-O {[%clk 0:02:49.4]} 14... a6 {[%clk 0:02:17.3]} 15. Rfe1
{[%clk 0:02:40.6]} 15... b5 {[%clk 0:02:15.6]} 16. Bb3 {[%clk 0:02:39.3]} 16...
Bb7 {[%clk 0:02:14.5]} 17. Rad1 {[%clk 0:02:38]} 17... Re8 {[%clk 0:01:53.4]}
18. Ne5 {[%clk 0:02:34.7]} 18... Qd6 {[%clk 0:01:49.9]} 19. a3 {[%clk
0:02:02.9]} 19... Rad8 {[%clk 0:01:48.2]} 20. h3 {[%clk 0:02:02.3]} 20... Nxd5
{[%clk 0:01:07.4]} 21. Nxd5 {[%clk 0:01:04.5]} 21... Bxe5 {[%clk 0:00:58.6]} 22.
Qe2 {[%clk 0:01:04.6]} 22... Bf6 {[%clk 0:00:40.6]} 23. Nxf6+ {[%clk 0:00:46.9]}
23... Qxf6 {[%clk 0:00:36.7]} 24. Rxd8 {[%clk 0:00:46.9]} 24... Rxd8 {[%clk
0:00:37.3]} 25. Qxe7 {[%clk 0:00:47.3]} 25... Qxe7 {[%clk 0:00:32.8]} 26. Rxe7
{[%clk 0:00:46.9]} 26... Bd5 {[%clk 0:00:32.8]} 27. Bxd5 {[%clk 0:00:38]} 27...
Rxd5 {[%clk 0:00:33.7]} 28. Ra7 {[%clk 0:00:38.6]} 28... Rd6 {[%clk 0:00:27.5]}
29. Kf1 {[%clk 0:00:38.6]} 29... Re6 {[%clk 0:00:26.6]} 30. f3 {[%clk
0:00:30.4]} 30... h5 {[%clk 0:00:26.4]} 31. Kf2 {[%clk 0:00:27.9]} 31... Kg7
{[%clk 0:00:24.9]} 32. b4 {[%clk 0:00:21.1]} 32... Kg6 {[%clk 0:00:23.9]} 33.
Kg3 {[%clk 0:00:21.6]} 33... h4+ {[%clk 0:00:18.4]} 34. Kf2 {[%clk 0:00:20.6]}
34... f6 {[%clk 0:00:18.8]} 35. Ra8 {[%clk 0:00:20.1]} 35... Kf5 {[%clk
0:00:18.8]} 36. Ra7 {[%clk 0:00:19]} 36... Kf4 {[%clk 0:00:17.8]} 37. Rd7 {[%clk
0:00:10.4]} 37... Rc6 {[%clk 0:00:17.8]} 38. Rd4+ {[%clk 0:00:10.4]} 38... Ke5
{[%clk 0:00:18.3]} 39. Rd3 {[%clk 0:00:10.5]} 39... Rc2+ {[%clk 0:00:18.2]} 40.
Kf1 {[%clk 0:00:09.2]} 40... Ra2 {[%clk 0:00:17.4]} 41. Kg1 {[%clk 0:00:08.1]}
41... Kf4 {[%clk 0:00:17.4]} 42. Rd4+ {[%clk 0:00:08.2]} 42... Ke5 {[%clk
0:00:12.7]} 43. Rd3 {[%clk 0:00:07.3]} 43... f5 {[%clk 0:00:12.8]} 44. Kh2
{[%clk 0:00:05.4]} 44... Kf4 {[%clk 0:00:12.4]} 45. Rd4+ {[%clk 0:00:04.4]}
45... Ke5 {[%clk 0:00:12.8]} 46. Rd3 {[%clk 0:00:04.6]} 46... Ra1 {[%clk
0:00:12.6]} 47. Rc3 {[%clk 0:00:02.7]} 47... Kf4 {[%clk 0:00:06.9]} 48. Rd3
{[%clk 0:00:02.6]} 48... Ra2 {[%clk 0:00:06.2]} 49. Rd4+ {[%clk 0:00:02.3]}
49... Ke3 {[%clk 0:00:06]} 50. Rd5 {[%clk 0:00:02.9]} 50... Kf4 {[%clk
0:00:06.4]} 51. Rd4+ {[%clk 0:00:03.2]} 1/2-1/2

[Event "Late-Titled-Tuesday-Blitz-February-27-2024"]
[Site "Chess.com"]
[Date "2024.02.27"]
[Round "3"]
[White "DeTimmerman"]
[Black "vi_pranav"]
[Result "0-1"]
[WhiteElo "2744"]
[BlackElo "3116"]
[TimeControl "180+1"]
[EndTime "14:29:38 PST"]
[Termination "vi_pranav won by resignation"]

1. b4 {[%clk 0:03:00.2]} 1... e5 {[%clk 0:02:56.6]} 2. Bb2 {[%clk 0:03:00.6]}
2... d6 {[%clk 0:02:56.9]} 3. b5 {[%clk 0:03:00.6]} 3... Nf6 {[%clk 0:02:56.7]}
4. c4 {[%clk 0:03:00.6]} 4... g6 {[%clk 0:02:54.5]} 5. e3 {[%clk 0:03:00.6]}
5... Bg7 {[%clk 0:02:55.1]} 6. a4 {[%clk 0:03:00.7]} 6... O-O {[%clk 0:02:55.5]}
7. Nf3 {[%clk 0:02:59.5]} 7... Nbd7 {[%clk 0:02:55.1]} 8. Be2 {[%clk 0:02:59.3]}
8... Nh5 {[%clk 0:02:53.3]} 9. O-O {[%clk 0:02:56.7]} 9... e4 {[%clk 0:02:42.8]}
10. Nd4 {[%clk 0:02:57]} 10... Nhf6 {[%clk 0:02:43.3]} 11. Nc3 {[%clk
0:02:56.9]} 11... Nc5 {[%clk 0:02:42.9]} 12. f3 {[%clk 0:02:56.9]} 12... exf3
{[%clk 0:02:38.6]} 13. Bxf3 {[%clk 0:02:57.8]} 13... Re8 {[%clk 0:02:37]} 14.
Qc2 {[%clk 0:02:56.9]} 14... a6 {[%clk 0:02:32.6]} 15. Nd5 {[%clk 0:02:42.6]}
15... axb5 {[%clk 0:02:21.9]} 16. axb5 {[%clk 0:02:42.6]} 16... Rxa1 {[%clk
0:02:21.3]} 17. Bxa1 {[%clk 0:02:43.5]} 17... Nfd7 {[%clk 0:02:15.4]} 18. Nb3
{[%clk 0:02:34.1]} 18... Ne5 {[%clk 0:02:11]} 19. Be2 {[%clk 0:02:32]} 19... c6
{[%clk 0:01:51.4]} 20. bxc6 {[%clk 0:02:27.6]} 20... bxc6 {[%clk 0:01:52.3]} 21.
Nb4 {[%clk 0:02:16.4]} 21... Bf5 {[%clk 0:01:32.8]} 22. Qd1 {[%clk 0:00:57.1]}
22... Qb6 {[%clk 0:01:21.6]} 23. Nxc5 {[%clk 0:00:56.5]} 23... dxc5 {[%clk
0:01:21.3]} 24. Bxe5 {[%clk 0:00:42.5]} 24... Bxe5 {[%clk 0:01:10.1]} 25. Nd3
{[%clk 0:00:43.4]} 25... Bg7 {[%clk 0:01:07.2]} 26. Nf4 {[%clk 0:00:42.3]} 26...
Rd8 {[%clk 0:00:56.5]} 27. d3 {[%clk 0:00:34.7]} 27... Qb2 {[%clk 0:00:54.9]}
28. Qc1 {[%clk 0:00:25.7]} 28... Qe5 {[%clk 0:00:51]} 29. e4 {[%clk 0:00:24.4]}
29... Bd7 {[%clk 0:00:47.8]} 30. g3 {[%clk 0:00:24.2]} 30... Rb8 {[%clk
0:00:45.2]} 31. Qe3 {[%clk 0:00:23.9]} 31... Qe7 {[%clk 0:00:44.1]} 32. Kg2
{[%clk 0:00:23.5]} 32... h5 {[%clk 0:00:43.9]} 33. h3 {[%clk 0:00:23.2]} 33...
Rb2 {[%clk 0:00:41.1]} 34. Qf3 {[%clk 0:00:12.9]} 34... Bd4 {[%clk 0:00:38.7]}
35. Kh1 {[%clk 0:00:12.7]} 35... Be8 {[%clk 0:00:34.5]} 36. Ng2 {[%clk
0:00:08.6]} 36... Qg5 {[%clk 0:00:30]} 37. Nf4 {[%clk 0:00:08.6]} 37... h4
{[%clk 0:00:22]} 38. Qg4 {[%clk 0:00:07.5]} 38... Qxg4 {[%clk 0:00:21.1]} 39.
Bxg4 {[%clk 0:00:07.6]} 39... hxg3 {[%clk 0:00:21.4]} 40. Ng2 {[%clk 0:00:08.5]}
40... Bf2 {[%clk 0:00:19.6]} 41. e5 {[%clk 0:00:07.7]} 41... Kg7 {[%clk
0:00:15.8]} 42. Rd1 {[%clk 0:00:08]} 42... Bd4 {[%clk 0:00:15.6]} 43. e6 {[%clk
0:00:07.7]} 43... f5 {[%clk 0:00:11.6]} 44. Bf3 {[%clk 0:00:07.9]} 44... g5
{[%clk 0:00:12.3]} 45. Rf1 {[%clk 0:00:07.4]} 45... Rd2 {[%clk 0:00:11]} 46. Rd1
{[%clk 0:00:07.4]} 46... Rxd1+ {[%clk 0:00:10.2]} 47. Bxd1 {[%clk 0:00:08.3]}
47... Kf6 {[%clk 0:00:10.9]} 48. Ne1 {[%clk 0:00:06.6]} 48... Kxe6 {[%clk
0:00:08.1]} 49. Nf3 {[%clk 0:00:07.1]} 49... Be3 {[%clk 0:00:08.3]} 50. Kg2
{[%clk 0:00:07.5]} 50... Bf4 {[%clk 0:00:08.9]} 51. d4 {[%clk 0:00:05.9]} 51...
cxd4 {[%clk 0:00:07.6]} 52. Nxd4+ {[%clk 0:00:06.8]} 52... Ke5 {[%clk
0:00:08.3]} 53. Bc2 {[%clk 0:00:07.7]} 53... Kxd4 {[%clk 0:00:08.5]} 0-1

[Event "Late-Titled-Tuesday-Blitz-February-27-2024"]
[Site "Chess.com"]
[Date "2024.02.27"]
[Round "3"]
[White "TemploVillamarin"]
[Black "Baronessa08"]
[Result "0-1"]
[WhiteElo "2198"]
[BlackElo "2531"]
[TimeControl "180+1"]
[EndTime "14:29:38 PST"]
[Termination "Baronessa08 won by resignation"]

1. d4 {[%clk 0:02:58.9]} 1... d5 {[%clk 0:02:59.7]} 2. Nc3 {[%clk 0:02:58.6]}
2... Nf6 {[%clk 0:02:56.9]} 3. e4 {[%clk 0:02:58.6]} 3... dxe4 {[%clk
0:02:56.1]} 4. f3 {[%clk 0:02:58.8]} 4... g6 {[%clk 0:02:37.8]} 5. fxe4 {[%clk
0:02:56.5]} 5... Bg4 {[%clk 0:02:36.7]} 6. Be2 {[%clk 0:02:50.8]} 6... Bxe2
{[%clk 0:02:36.1]} 7. Ngxe2 {[%clk 0:02:51.7]} 7... Bg7 {[%clk 0:02:35.4]} 8.
Be3 {[%clk 0:02:51.8]} 8... O-O {[%clk 0:02:30.5]} 9. h3 {[%clk 0:02:51.4]} 9...
c5 {[%clk 0:02:16.7]} 10. Qd2 {[%clk 0:02:37.5]} 10... cxd4 {[%clk 0:02:11.6]}
11. Nxd4 {[%clk 0:02:38.4]} 11... Nbd7 {[%clk 0:01:56.1]} 12. O-O-O {[%clk
0:02:29.5]} 12... Rc8 {[%clk 0:01:48.7]} 13. Nf3 {[%clk 0:02:12.9]} 13... Qa5
{[%clk 0:01:44.3]} 14. Kb1 {[%clk 0:01:58.6]} 14... Rfd8 {[%clk 0:01:37.2]} 15.
Nd5 {[%clk 0:01:24.3]} 15... Qxd2 {[%clk 0:01:36.2]} 16. Nxd2 {[%clk 0:01:23.5]}
16... Nxd5 {[%clk 0:01:12.9]} 17. exd5 {[%clk 0:01:24.4]} 17... Ne5 {[%clk
0:01:08.3]} 18. Ne4 {[%clk 0:00:57.2]} 18... Nc4 {[%clk 0:01:00.3]} 19. Bd4
{[%clk 0:00:56.1]} 19... Rxd5 {[%clk 0:00:58.6]} 20. Bxg7 {[%clk 0:00:43.1]}
20... Rxd1+ {[%clk 0:00:57.5]} 21. Rxd1 {[%clk 0:00:44]} 21... Kxg7 {[%clk
0:00:57.9]} 22. Rd7 {[%clk 0:00:43.8]} 22... Ne3 {[%clk 0:00:30.8]} 23. c3
{[%clk 0:00:21.9]} 23... Nxg2 {[%clk 0:00:24.2]} 24. Rxb7 {[%clk 0:00:21.8]}
24... Nf4 {[%clk 0:00:21]} 25. Rxe7 {[%clk 0:00:20.1]} 25... Nxh3 {[%clk
0:00:16.1]} 26. Nd6 {[%clk 0:00:18.5]} 26... Rf8 {[%clk 0:00:15.3]} 27. Rxa7
{[%clk 0:00:18.1]} 27... g5 {[%clk 0:00:15.6]} 28. b4 {[%clk 0:00:18.2]} 28...
g4 {[%clk 0:00:15.6]} 29. Ne4 {[%clk 0:00:17.7]} 29... h5 {[%clk 0:00:14.6]} 30.
b5 {[%clk 0:00:17.5]} 30... h4 {[%clk 0:00:14.9]} 31. b6 {[%clk 0:00:17.9]}
31... g3 {[%clk 0:00:15]} 32. Nd2 {[%clk 0:00:09.7]} 32... g2 {[%clk 0:00:13.6]}
33. Nf3 {[%clk 0:00:09.9]} 33... g1=Q+ {[%clk 0:00:13.2]} 34. Nxg1 {[%clk
0:00:10.5]} 34... Nxg1 {[%clk 0:00:13.8]} 35. b7 {[%clk 0:00:11.4]} 35... Rb8
{[%clk 0:00:13.5]} 36. c4 {[%clk 0:00:12.3]} 36... h3 {[%clk 0:00:13.7]} 37. c5
{[%clk 0:00:13.2]} 37... h2 {[%clk 0:00:13.9]} 38. c6 {[%clk 0:00:14.1]} 38...
h1=Q {[%clk 0:00:14.3]} 39. Ra8 {[%clk 0:00:11.3]} 39... Qe4+ {[%clk 0:00:11.3]}
40. Kb2 {[%clk 0:00:08.7]} 40... Qe5+ {[%clk 0:00:11.1]} 41. Kb1 {[%clk
0:00:08.8]} 41... Ne2 {[%clk 0:00:10.7]} 42. Rxb8 {[%clk 0:00:05.6]} 42... Qxb8
{[%clk 0:00:09.2]} 43. a4 {[%clk 0:00:06.5]} 43... Nd4 {[%clk 0:00:09.2]} 44. a5
{[%clk 0:00:06]} 44... Nxc6 {[%clk 0:00:09.3]} 45. a6 {[%clk 0:00:06.9]} 45...
Na7 {[%clk 0:00:09.2]} 46. Kc2 {[%clk 0:00:06.6]} 46... f5 {[%clk 0:00:09.3]}
47. Kd2 {[%clk 0:00:07.5]} 47... Kf6 {[%clk 0:00:09.6]} 48. Ke2 {[%clk
0:00:08.4]} 48... Ke5 {[%clk 0:00:09.7]} 49. Kf3 {[%clk 0:00:09.3]} 49... f4
{[%clk 0:00:10]} 50. Kf2 {[%clk 0:00:09.6]} 50... Qh8 {[%clk 0:00:09.7]} 51. Ke2
{[%clk 0:00:10.5]} 51... Nc6 {[%clk 0:00:09.6]} 52. Kd3 {[%clk 0:00:11.4]} 52...
Kf5 {[%clk 0:00:09]} 53. a7 {[%clk 0:00:12.3]} 53... Nxa7 {[%clk 0:00:08.1]} 54.
b8=Q {[%clk 0:00:13.2]} 54... Qxb8 {[%clk 0:00:07.4]} 0-1

[Event "Late-Titled-Tuesday-Blitz-February-27-2024"]
[Site "Chess.com"]
[Date "2024.02.27"]
[Round "3"]
[White "Lady_Nika"]
[Black "Mr_Heisenberg13"]
[Result "1/2-1/2"]
[WhiteElo "2569"]
[BlackElo "2837"]
[TimeControl "180+1"]
[EndTime "14:29:39 PST"]
[Termination "Game drawn by repetition"]

1. d4 {[%clk 0:02:59.8]} 1... Nf6 {[%clk 0:02:59.6]} 2. c4 {[%clk 0:02:59]} 2...
e6 {[%clk 0:03:00]} 3. a3 {[%clk 0:02:58.7]} 3... a6 {[%clk 0:02:56.6]} 4. Nc3
{[%clk 0:02:58.6]} 4... d5 {[%clk 0:02:56]} 5. cxd5 {[%clk 0:02:58]} 5... exd5
{[%clk 0:02:56.9]} 6. Bg5 {[%clk 0:02:54.9]} 6... Be6 {[%clk 0:02:55.4]} 7. e3
{[%clk 0:02:52.9]} 7... Nbd7 {[%clk 0:02:55.2]} 8. Nf3 {[%clk 0:02:52.8]} 8...
h6 {[%clk 0:02:53.6]} 9. Bh4 {[%clk 0:02:52.7]} 9... g5 {[%clk 0:02:53.7]} 10.
Bg3 {[%clk 0:02:52.8]} 10... Nh5 {[%clk 0:02:54.3]} 11. Ne5 {[%clk 0:02:52.8]}
11... Nxg3 {[%clk 0:02:53.7]} 12. hxg3 {[%clk 0:02:50.8]} 12... Nxe5 {[%clk
0:02:53.6]} 13. dxe5 {[%clk 0:02:51]} 13... c6 {[%clk 0:02:52.6]} 14. Be2 {[%clk
0:02:46.2]} 14... Bg7 {[%clk 0:02:42.1]} 15. f4 {[%clk 0:02:46.1]} 15... Qb6
{[%clk 0:02:41.7]} 16. Qd2 {[%clk 0:02:44.6]} 16... O-O-O {[%clk 0:02:41]} 17.
Na4 {[%clk 0:02:41.7]} 17... Qc7 {[%clk 0:02:40.1]} 18. Nc5 {[%clk 0:02:39]}
18... Bf8 {[%clk 0:02:31.9]} 19. b4 {[%clk 0:02:28.1]} 19... Rg8 {[%clk
0:02:29.5]} 20. Kf2 {[%clk 0:02:15.2]} 20... Kb8 {[%clk 0:02:07.9]} 21. Rab1
{[%clk 0:02:13.3]} 21... Ka8 {[%clk 0:02:01.6]} 22. a4 {[%clk 0:02:09.5]} 22...
gxf4 {[%clk 0:01:37.9]} 23. exf4 {[%clk 0:02:03.9]} 23... d4 {[%clk 0:01:37.7]}
24. Rhc1 {[%clk 0:02:00.1]} 24... d3 {[%clk 0:01:28.4]} 25. Bf3 {[%clk
0:01:49.9]} 25... Bd5 {[%clk 0:01:19.3]} 26. Rc3 {[%clk 0:01:31.6]} 26... Bxf3
{[%clk 0:01:05.8]} 27. gxf3 {[%clk 0:01:29.8]} 27... Bxc5+ {[%clk 0:00:59.6]}
28. bxc5 {[%clk 0:01:27.3]} 28... Qd7 {[%clk 0:00:59.3]} 29. Rb4 {[%clk
0:01:25.5]} 29... Qh3 {[%clk 0:00:57.7]} 30. Ke3 {[%clk 0:01:20.6]} 30... Rxg3
{[%clk 0:00:53.3]} 31. Qd1 {[%clk 0:01:11.5]} 31... d2 {[%clk 0:00:46.3]} 32.
Rb1 {[%clk 0:01:10.2]} 32... Rg2 {[%clk 0:00:39.5]} 33. Qb3 {[%clk 0:00:55.9]}
33... Qd7 {[%clk 0:00:35.4]} 34. Rd3 {[%clk 0:00:43.8]} 34... Qxd3+ {[%clk
0:00:33.3]} 35. Qxd3 {[%clk 0:00:43.5]} 35... Rxd3+ {[%clk 0:00:33.8]} 36. Kxd3
{[%clk 0:00:43.8]} 36... h5 {[%clk 0:00:27.4]} 37. Rh1 {[%clk 0:00:37.9]} 37...
Rf2 {[%clk 0:00:16.5]} 38. Ke3 {[%clk 0:00:32.2]} 38... Rh2 {[%clk 0:00:16.1]}
39. Rd1 {[%clk 0:00:27.4]} 39... h4 {[%clk 0:00:08.8]} 40. f5 {[%clk 0:00:22.2]}
40... Rg2 {[%clk 0:00:09]} 41. f4 {[%clk 0:00:13.5]} 41... Kb8 {[%clk
0:00:08.5]} 42. Kf3 {[%clk 0:00:12.4]} 42... h3 {[%clk 0:00:08.7]} 43. f6 {[%clk
0:00:05.3]} 43... Kc7 {[%clk 0:00:04.7]} 44. e6 {[%clk 0:00:05.5]} 44... Rg6
{[%clk 0:00:05.1]} 45. e7 {[%clk 0:00:03.7]} 45... h2 {[%clk 0:00:05.4]} 46.
e8=Q {[%clk 0:00:03.2]} 46... Rg1 {[%clk 0:00:06.3]} 47. Qe7+ {[%clk 0:00:02.4]}
47... Kb8 {[%clk 0:00:06.8]} 48. Qd8+ {[%clk 0:00:02.7]} 48... Ka7 {[%clk
0:00:07.4]} 49. Qb6+ {[%clk 0:00:03]} 49... Ka8 {[%clk 0:00:08.1]} 50. Qd8+
{[%clk 0:00:03.2]} 50... Ka7 {[%clk 0:00:08.7]} 51. Qb6+ {[%clk 0:00:02.1]}
51... Ka8 {[%clk 0:00:08.5]} 52. Qd8+ {[%clk 0:00:02.4]} 52... Ka7 {[%clk
0:00:09.1]} 1/2-1/2

[Event "Late-Titled-Tuesday-Blitz-February-27-2024"]
[Site "Chess.com"]
[Date "2024.02.27"]
[Round "3"]
[White "Mikayel99"]
[Black "Evgeny81"]
[Result "1-0"]
[WhiteElo "2554"]
[BlackElo "2785"]
[TimeControl "180+1"]
[EndTime "14:29:39 PST"]
[Termination "Mikayel99 won by resignation"]

1. e4 {[%clk 0:02:56.9]} 1... e6 {[%clk 0:03:00.9]} 2. d4 {[%clk 0:02:56.6]}
2... d5 {[%clk 0:03:01.3]} 3. Nd2 {[%clk 0:02:55.3]} 3... Nd7 {[%clk 0:03:01.3]}
4. Ngf3 {[%clk 0:02:53.6]} 4... Ne7 {[%clk 0:03:01.6]} 5. Bd3 {[%clk 0:02:50.9]}
5... c5 {[%clk 0:03:01.8]} 6. c3 {[%clk 0:02:50.5]} 6... cxd4 {[%clk 0:02:59.6]}
7. Nxd4 {[%clk 0:02:49.7]} 7... Nc5 {[%clk 0:02:54.8]} 8. Bc2 {[%clk 0:02:43.4]}
8... Nc6 {[%clk 0:02:53.8]} 9. exd5 {[%clk 0:02:36.7]} 9... Qxd5 {[%clk
0:02:50.9]} 10. N2f3 {[%clk 0:02:29.4]} 10... Be7 {[%clk 0:02:44.8]} 11. O-O
{[%clk 0:02:25.8]} 11... O-O {[%clk 0:02:43.7]} 12. Nxc6 {[%clk 0:02:24.1]}
12... bxc6 {[%clk 0:02:40.3]} 13. Re1 {[%clk 0:02:10.2]} 13... a5 {[%clk
0:02:32.2]} 14. Ne5 {[%clk 0:01:59]} 14... Bf6 {[%clk 0:02:22.9]} 15. Bf4 {[%clk
0:01:42.8]} 15... Ba6 {[%clk 0:02:12.1]} 16. b4 {[%clk 0:01:21.9]} 16... Nb7
{[%clk 0:02:09.9]} 17. Qg4 {[%clk 0:00:56.6]} 17... axb4 {[%clk 0:02:01.6]} 18.
Be4 {[%clk 0:00:46.3]} 18... Qc5 {[%clk 0:01:48.6]} 19. Nd7 {[%clk 0:00:36.7]}
19... Qe7 {[%clk 0:01:48.4]} 20. Nxf6+ {[%clk 0:00:35.2]} 20... Qxf6 {[%clk
0:01:48.6]} 21. Be5 {[%clk 0:00:26.8]} 21... Qh6 {[%clk 0:01:45.4]} 22. Bf4
{[%clk 0:00:19.2]} 22... Qf6 {[%clk 0:01:40.3]} 23. cxb4 {[%clk 0:00:18.5]}
23... Bc4 {[%clk 0:01:27.1]} 24. a4 {[%clk 0:00:14.9]} 24... Bd5 {[%clk
0:01:26.2]} 25. Bxd5 {[%clk 0:00:15]} 25... cxd5 {[%clk 0:01:24]} 26. a5 {[%clk
0:00:14.5]} 26... h5 {[%clk 0:01:16.8]} 27. Qg3 {[%clk 0:00:12.4]} 27... h4
{[%clk 0:01:14.6]} 28. Qg5 {[%clk 0:00:09.7]} 28... Qxg5 {[%clk 0:01:10.4]} 29.
Bxg5 {[%clk 0:00:10.6]} 29... Rfc8 {[%clk 0:01:09.5]} 30. a6 {[%clk 0:00:07.4]}
30... Nd6 {[%clk 0:01:09.2]} 31. Be7 {[%clk 0:00:07.6]} 31... Nb5 {[%clk
0:01:08.8]} 32. Ra5 {[%clk 0:00:04.9]} 32... Rc7 {[%clk 0:01:00.8]} 33. Rxb5
{[%clk 0:00:04.2]} 33... Rxe7 {[%clk 0:01:00.4]} 34. Ra1 {[%clk 0:00:04.6]}
34... Rc7 {[%clk 0:00:57.9]} 35. Kf1 {[%clk 0:00:03.7]} 35... d4 {[%clk
0:00:52.9]} 36. Rb7 {[%clk 0:00:03.4]} 36... Rcc8 {[%clk 0:00:20.6]} 37. b5
{[%clk 0:00:03.6]} 37... d3 {[%clk 0:00:20.1]} 38. Rd1 {[%clk 0:00:04]} 38...
Rd8 {[%clk 0:00:18.6]} 39. a7 {[%clk 0:00:04.4]} 39... e5 {[%clk 0:00:17.3]} 40.
f3 {[%clk 0:00:05]} 40... f5 {[%clk 0:00:17.3]} 41. Kf2 {[%clk 0:00:05.7]} 41...
Kh7 {[%clk 0:00:12.4]} 42. b6 {[%clk 0:00:05.6]} 42... Kg6 {[%clk 0:00:11.8]}
43. Ke3 {[%clk 0:00:05.5]} 43... f4+ {[%clk 0:00:09.8]} 44. Ke4 {[%clk
0:00:03.8]} 44... d2 {[%clk 0:00:08.9]} 45. Kxe5 {[%clk 0:00:03.4]} 45... Rd3
{[%clk 0:00:08.8]} 46. Ke4 {[%clk 0:00:03.2]} 46... Rdd8 {[%clk 0:00:08.4]} 47.
Kxf4 {[%clk 0:00:03.8]} 47... Rd3 {[%clk 0:00:07.6]} 48. Ke4 {[%clk 0:00:04.2]}
48... Rad8 {[%clk 0:00:06.5]} 49. Rc7 {[%clk 0:00:04.1]} 49... R8d4+ {[%clk
0:00:06.2]} 50. Ke5 {[%clk 0:00:04.7]} 50... Rd5+ {[%clk 0:00:05.4]} 51. Ke6
{[%clk 0:00:05.4]} 51... Rd6+ {[%clk 0:00:05]} 52. Ke7 {[%clk 0:00:05.9]} 52...
R6d5 {[%clk 0:00:04.2]} 53. Rc6+ {[%clk 0:00:06.2]} 53... Kh7 {[%clk 0:00:03.9]}
54. a8=Q {[%clk 0:00:06.7]} 54... Re3+ {[%clk 0:00:04.1]} 55. Re6 {[%clk
0:00:07.4]} 55... Rde5 {[%clk 0:00:04.3]} 56. Rxe5 {[%clk 0:00:07.7]} 56...
Rxe5+ {[%clk 0:00:04.5]} 57. Kd6 {[%clk 0:00:08.4]} 1-0